bitfinex/quotes_SOLUSD_20250706
["timestamp","ask_amount","ask_price","bid_price","bid_amount"]
[1751763873024,5.06799604,147.72,147.7,10.62751251]
[1751763873244,0.06,147.73,147.7,10.62751251]
[1751763873446,5.06849981,147.72,147.7,10.62751251]
[1751763873652,0.06,147.73,147.7,10.62751251]
[1751763873828,5.06849981,147.72,147.7,10.62751251]
[1751763874027,0.06,147.73,147.7,10.62751251]
[1751763874227,5.06849981,147.72,147.7,10.62751251]
[1751763874445,0.06,147.73,147.7,10.62751251]
[1751763874637,5.06908344,147.72,147.7,10.62751251]
[1751763874837,0.06,147.73,147.7,10.62751251]
[1751763875130,5.06908344,147.72,147.7,10.62751251]
[1751763875326,0.06,147.73,147.7,10.62751251]
[1751763875630,5.06976332,147.72,147.7,10.62751251]
[1751763875929,0.06,147.73,147.7,10.62751251]
[1751763876128,5.06976499,147.72,147.7,10.62751251]
[1751763876325,0.06,147.73,147.7,10.62751251]
[1751763876530,5.07055463,147.72,147.7,10.62751251]
[1751763876740,0.06,147.73,147.7,10.62751251]
[1751763876943,5.07055463,147.72,147.7,10.62751251]
[1751763877140,0.06,147.73,147.7,10.62751251]
[1751763877348,5.07143521,147.72,147.7,10.62751251]
[1751763877548,0.06,147.73,147.7,10.62751251]
[1751763877756,5.07148091,147.72,147.7,10.62751251]
[1751763877939,0.06,147.73,147.7,10.62751251]
[1751763878134,5.07148258,147.72,147.7,10.62751251]
[1751763878354,0.06,147.73,147.7,10.62751251]
[1751763878539,0.06,147.73,147.72,22.50668067]
[1751763878744,0.06,147.73,147.72,3.85703181]
[1751763878950,0.06,147.73,147.72,10.77703181]
[1751763880040,0.06,147.73,147.72,17.54659585]
[1751763886442,0.06,147.73,147.69,0.03]
[1751763886443,29.91703181,147.73,147.69,0.03]
[1751763886677,3.85703181,147.7,147.69,0.03]
[1751763886873,36.17889338,147.72,147.69,0.03]
[1751763887067,29.85703181,147.72,147.69,0.03]
[1751763890573,5.06909268,147.71,147.69,0.03]
[1751763890867,5.06909268,147.7,147.69,0.03]
[1751763902889,5.06536227,147.7,147.69,0.03]
[1751763913576,5.06368495,147.7,147.69,0.03]
[1751763928395,5.07051396,147.7,147.69,0.03]
[1751763953734,5.07051396,147.7,147.69,5.63579338]
[1751763953941,0.06,147.72,147.7,0.14216157]
[1751763954140,5.08206892,147.71,147.7,0.14216157]
[1751763954438,5.08206892,147.71,147.7,3.99919338]
[1751763954621,0.06,147.72,147.7,3.99919338]
[1751763954946,0.06,147.72,147.7,5.19919338]
[1751763955519,0.06,147.72,147.71,10.76921572]
[1751763958743,0.06,147.72,147.71,6.91218391]
[1751763959042,0.06,147.72,147.71,10.76921572]
[1751763960547,0.06,147.72,147.71,11.96921572]
[1751763965037,0.06,147.72,147.71,11.99921572]
[1751763968442,0.06,147.72,147.71,5.08703181]
[1751763968743,0.06,147.72,147.71,8.00002234]
[1751763971249,0.06,147.72,147.71,11.85705415]
[1751763972466,0.06,147.72,147.71,10.65705415]
[1751763998086,5.13629173,147.72,147.71,10.65705415]
[1751764019012,5.13629173,147.72,147.71,0.03]
[1751764019198,5.13629173,147.72,147.71,3.88703181]
[1751764021622,5.13629173,147.72,147.71,10.65705415]
[1751764022821,0.06,147.72,147.71,10.79921572]
[1751764025211,0.06,147.72,147.71,11.99921572]
[1751764032024,0.06,147.72,147.71,8.14218391]
[1751764032322,0.06,147.72,147.71,11.99921572]
[1751764036828,0.06,147.72,147.71,8.14218391]
[1751764037009,0.06,147.72,147.71,11.99921572]
[1751764045327,0.06,147.72,147.71,8.14218391]
[1751764045503,0.06,147.72,147.71,11.99921572]
[1751764052205,0.06,147.72,147.71,5.08703181]
[1751764052413,0.06,147.72,147.71,0.03]
[1751764054716,5.13275259,147.72,147.71,0.03]
[1751764073947,5.12494305,147.72,147.71,0.03]
[1751764086545,8.98197486,147.72,147.71,0.03]
[1751764087358,15.7515389,147.72,147.71,0.03]
[1751764092984,15.75465454,147.72,147.71,0.03]
[1751764096084,41.75465454,147.72,147.71,0.03]
[1751764096291,60.4043034,147.72,147.71,0.03]
[1751764096763,40.73937676,147.72,147.71,0.03]
[1751764096968,44.64964886,147.7,147.69,0.03]
[1751764097168,59.91432946,147.7,147.69,0.03]
[1751764097881,26.0,147.67,147.66,0.03]
[1751764098070,34.9250905,147.67,147.66,0.03]
[1751764098270,41.69694666,147.67,147.66,0.03]
[1751764098876,41.69694666,147.67,147.66,1e-08]
[1751764098877,49.77844666,147.67,147.66,1e-08]
[1751764099062,44.64964886,147.64,147.63,0.2]
[1751764099263,53.57473936,147.64,147.63,0.2]
[1751764099484,59.91159688,147.64,147.63,0.2]
[1751764100357,66.68482906,147.64,147.63,0.2]
[1751764102479,60.34797154,147.64,147.63,0.2]
[1751764104177,61.0190556,147.64,147.63,0.2]
[1751764107194,60.98472477,147.64,147.63,0.2]
[1751764118108,57.12769296,147.64,147.63,0.2]
[1751764118397,60.98472477,147.64,147.63,0.2]
[1751764120678,95.10472477,147.64,147.63,0.2]
[1751764121302,104.38694544,147.64,147.63,0.2]
[1751764128415,104.38106755,147.64,147.63,0.2]
[1751764129015,103.72651623,147.64,147.63,1e-08]
[1751764129216,44.64964886,147.61,147.6,0.03]
[1751764129519,87.65453064,147.61,147.6,0.03]
[1751764130309,94.4291394,147.61,147.6,0.03]
[1751764132306,104.38244413,147.61,147.6,0.03]
[1751764132510,119.81057137,147.61,147.6,0.03]
[1751764136413,126.09778308,147.61,147.6,0.03]
[1751764137717,110.66965584,147.61,147.6,0.03]
[1751764139321,104.38244413,147.61,147.6,0.03]
[1751764141329,18.64964886,147.6,147.58,0.2]
[1751764141624,75.31652599,147.59,147.58,0.2]
[1751764142421,75.76040857,147.59,147.58,0.2]
[1751764144134,78.24479606,147.59,147.58,0.2]
[1751764144913,44.14479606,147.59,147.58,0.2]
[1751764145630,48.00182787,147.59,147.58,0.2]
[1751764147329,41.66040857,147.59,147.58,0.2]
[1751764149236,34.88488178,147.59,147.58,0.2]
[1751764149735,5.02784997,147.59,147.58,0.2]
[1751764150039,5.02784997,147.59,147.58,6.2269]
[1751764150819,5.02784997,147.59,147.58,14.5969859]
[1751764151140,5.02784997,147.59,147.58,18.45401771]
[1751764153731,5.07335282,147.59,147.58,18.45401771]
[1751764156135,26.0,147.61,147.58,18.45401771]
[1751764156446,5.07177026,147.6,147.58,18.45401771]
[1751764156630,26.0,147.61,147.58,18.45401771]
[1751764156834,5.07165403,147.6,147.58,18.45401771]
[1751764157021,26.0,147.61,147.58,18.45401771]
[1751764157226,5.07165569,147.6,147.58,18.45401771]
[1751764157447,26.0,147.61,147.58,18.45401771]
[1751764157620,5.07117486,147.6,147.58,18.45401771]
[1751764157940,26.0,147.61,147.58,18.45401771]
[1751764158143,5.07117486,147.6,147.58,18.45401771]
[1751764158322,26.0,147.61,147.58,18.45401771]
[1751764158526,5.07072017,147.6,147.58,18.45401771]
[1751764158727,26.0,147.61,147.58,18.45401771]
[1751764158917,5.07072305,147.6,147.58,18.45401771]
[1751764159118,26.0,147.61,147.58,18.45401771]
[1751764159317,5.07044176,147.6,147.58,18.45401771]
[1751764159623,0.06,147.6,147.58,18.45401771]
[1751764162545,0.06,147.6,147.59,3.85703181]
[1751764162840,5.12907444,147.6,147.59,10.6325586]
[1751764168260,0.06,147.6,147.59,10.77472017]
[1751764173663,0.06,147.6,147.59,11.97472017]
[1751764179754,0.06,147.6,147.59,18.91472017]
[1751764181066,0.06,147.6,147.59,18.94472017]
[1751764192477,0.06,147.6,147.59,15.08768836]
[1751764192670,0.06,147.6,147.59,18.94472017]
[1751764196775,0.06,147.6,147.59,8.17]
[1751764197290,5.13221612,147.6,147.59,6.97]
[1751764202092,8.98924793,147.6,147.59,0.03]
[1751764203161,15.76431568,147.6,147.59,0.03]
[1751764219210,8.98924793,147.6,147.59,0.03]
[1751764219705,5.13221612,147.6,147.59,0.03]
[1751764224708,0.06,147.6,147.59,0.03]
[1751764224902,26.06,147.6,147.59,0.03]
[1751764231210,31.12695953,147.6,147.59,0.03]
[1751764232611,0.06,147.6,147.59,5.61009338]
[1751764233910,0.06,147.6,147.59,5.46793181]
[1751764234493,0.06,147.6,147.59,8.38642679]
[1751764234694,0.06,147.6,147.59,6.80552679]
[1751764239306,5.13153835,147.6,147.59,6.80552679]
[1751764242512,5.13153835,147.6,147.59,10.6625586]
[1751764245908,0.06,147.6,147.59,10.6625586]
[1751764250534,5.13191313,147.6,147.59,10.6625586]
[1751764254022,5.13243496,147.6,147.59,6.80552679]
[1751764254326,5.13243496,147.6,147.59,10.6625586]
[1751764254727,5.13243496,147.6,147.59,6.80552679]
[1751764258932,5.13243496,147.6,147.59,0.03]
[1751764274425,8.98946677,147.6,147.59,0.03]
[1751764281959,5.13243496,147.6,147.59,0.03]
[1751764295346,8.98946677,147.6,147.59,0.03]
[1751764309085,5.13243496,147.6,147.59,0.03]
[1751764309286,8.98946677,147.6,147.59,0.03]
[1751764312376,41.76453452,147.6,147.59,0.03]
[1751764312573,41.76453452,147.6,147.58,0.2]
[1751764312888,15.28162893,147.59,147.58,0.2]
[1751764314505,22.05715572,147.59,147.58,0.2]
[1751764318876,15.70499356,147.59,147.58,0.2]
[1751764319084,22.05715572,147.59,147.58,0.2]
[1751764319690,15.70499356,147.59,147.58,0.2]
[1751764319888,34.35464242,147.59,147.58,0.2]
[1751764321078,15.70499356,147.59,147.58,0.2]
[1751764321793,22.04712966,147.59,147.58,0.2]
[1751764327902,10.6325586,147.59,147.58,0.2]
[1751764328099,22.0359215,147.59,147.58,0.2]
[1751764333810,22.0959215,147.59,147.58,0.2]
[1751764334818,22.09091725,147.59,147.58,0.2]
[1751764337422,40.74056611,147.59,147.58,0.2]
[1751764337718,50.69387084,147.59,147.58,0.2]
[1751764342027,18.64964886,147.58,147.57,0.2]
[1751764342199,71.60592258,147.58,147.56,0.03]
[1751764342406,30.04820933,147.57,147.56,0.03]
[1751764342627,33.90524114,147.57,147.56,0.03]
[1751764342796,43.85854587,147.57,147.56,0.03]
[1751764344620,50.63499094,147.57,147.56,0.03]
[1751764346923,56.33495899,147.57,147.56,0.03]
[1751764347518,39.23643047,147.57,147.56,0.03]
[1751764347725,56.33552076,147.57,147.56,0.03]
[1751764348826,37.6858719,147.57,147.56,0.03]
[1751764353340,71.7658719,147.57,147.56,0.03]
[1751764359442,62.26637729,147.57,147.56,0.03]
[1751764360243,62.26637729,147.57,147.55,0.2]
[1751764360425,46.97595261,147.56,147.55,0.2]
[1751764361850,53.75285692,147.56,147.55,0.2]
[1751764362033,87.83285692,147.56,147.55,0.2]
[1751764365551,81.05595261,147.56,147.55,0.2]
[1751764365952,46.97595261,147.56,147.55,0.2]
[1751764371160,53.75285692,147.56,147.55,0.2]
[1751764372264,87.83285692,147.56,147.55,0.2]
[1751764375365,53.75285692,147.56,147.55,0.2]
[1751764375551,87.83285692,147.56,147.55,0.2]
[1751764376964,87.89285692,147.56,147.55,0.2]
[1751764380067,78.3735318,147.56,147.55,0.2]
[1751764381166,78.3735318,147.56,147.54,0.2]
[1751764381359,20.98974013,147.55,147.54,0.2]
[1751764381949,11.45662749,147.55,147.54,0.2]
[1751764383465,18.23399109,147.55,147.54,0.2]
[1751764389962,26.0,147.53,147.52,0.03]
[1751764390166,20.9943688,147.53,147.52,0.03]
[1751764392084,27.77265118,147.53,147.52,0.03]
[1751764399082,17.13733699,147.53,147.52,0.03]
[1751764399277,11.45662749,147.53,147.52,0.03]
[1751764399482,18.23490987,147.53,147.52,0.03]
[1751764399879,11.45662749,147.53,147.52,0.03]
[1751764401076,44.23490987,147.53,147.52,0.03]
[1751764401279,53.77265118,147.53,147.52,0.03]
[1751764402066,44.23490987,147.53,147.52,0.03]
[1751764403380,87.85265118,147.53,147.52,0.03]
[1751764405386,53.77265118,147.53,147.52,0.03]
[1751764407991,44.23490987,147.53,147.52,0.03]
[1751764418797,53.77265118,147.53,147.52,0.03]
[1751764419302,44.23490987,147.53,147.52,0.03]
[1751764421204,53.77265118,147.53,147.52,0.03]
[1751764423704,44.23490987,147.53,147.52,0.03]
[1751764424189,53.77265118,147.53,147.52,0.03]
[1751764449726,46.9943688,147.53,147.52,0.03]
[1751764449927,43.13733699,147.53,147.52,0.03]
[1751764453431,46.9943688,147.53,147.52,0.03]
[1751764457135,37.45662749,147.53,147.52,0.03]
[1751764458137,44.23490987,147.53,147.52,0.03]
[1751764458311,46.9943688,147.53,147.52,0.03]
[1751764472844,33.59959568,147.53,147.52,0.03]
[1751764482157,37.45662749,147.53,147.52,0.03]
[1751764482341,44.23490987,147.53,147.52,0.03]
[1751764482649,53.77265118,147.53,147.52,0.03]
[1751764487847,87.83265118,147.53,147.52,0.03]
[1751764489030,52.29490987,147.53,147.51,0.2]
[1751764489242,46.97967727,147.52,147.51,0.2]
[1751764489771,52.68230483,147.52,147.5,0.03]
[1751764489939,11.45662749,147.51,147.5,0.03]
[1751764492057,52.2958289,147.51,147.5,0.03]
[1751764492242,52.2958289,147.51,147.5,0.0064225]
[1751764498166,61.79539837,147.51,147.5,0.0064225]
[1751764503446,52.2958289,147.51,147.5,0.0064225]
[1751764504069,52.2958289,147.51,147.49,0.2]
[1751764504372,27.73041418,147.5,147.49,0.2]
[1751764510261,23.87338237,147.5,147.49,0.2]
[1751764510460,27.73041418,147.5,147.49,0.2]
[1751764510662,10.63669282,147.5,147.49,0.2]
[1751764511291,20.12247534,147.5,147.49,0.2]
[1751764511579,27.71110135,147.5,147.49,0.2]
[1751764514680,27.71520512,147.5,147.49,0.2]
[1751764519482,10.63669282,147.5,147.49,0.2]
[1751764519685,27.71447785,147.5,147.49,0.2]
[1751764526184,18.2268195,147.5,147.49,0.2]
[1751764527097,18.2268195,147.5,147.48,0.2]
[1751764527297,53.73257705,147.49,147.48,0.2]
[1751764530310,49.87554524,147.49,147.48,0.2]
[1751764530598,53.73257705,147.49,147.48,0.2]
[1751764532077,44.22727917,147.49,147.48,0.2]
[1751764533690,33.59012668,147.49,147.48,0.2]
[1751764534206,33.59012668,147.49,147.48,4.05703181]
[1751764534375,7.59012668,147.49,147.48,10.83761222]
[1751764534577,7.59012668,147.49,147.48,12.38691222]
[1751764538909,7.59012668,147.49,147.48,12.52907379]
[1751764539517,0.06,147.51,147.48,12.52907379]
[1751764539684,7.61058697,147.5,147.48,8.67204198]
[1751764539987,0.06,147.51,147.5,6.77966101]
[1751764540188,7.6703519,147.51,147.5,10.63669282]
[1751764542987,7.6703519,147.51,147.49,6.78012068]
[1751764543312,0.06,147.51,147.5,3.85703181]
[1751764543508,7.66634962,147.51,147.5,3.85703181]
[1751764544110,7.66634962,147.51,147.5,10.63669282]
[1751764547711,0.06,147.51,147.5,10.63669282]
[1751764547905,0.06,147.51,147.5,17.24389282]
[1751764550413,0.06,147.51,147.5,17.24389282]
[1751764554910,0.06,147.51,147.5,10.63669282]
[1751764561011,0.06,147.51,147.5,6.77966101]
[1751764561219,0.06,147.51,147.5,10.63669282]
[1751764562229,0.06,147.51,147.5,6.77966101]
[1751764566527,0.06,147.51,147.49,11.86696784]
[1751764566728,0.06,147.51,147.49,1.23]
[1751764567126,0.06,147.51,147.49,0.03]
[1751764568836,37.45517497,147.5,147.49,0.03]
[1751764569315,46.97785983,147.5,147.49,0.03]
[1751764570420,53.75752084,147.5,147.49,0.03]
[1751764574533,44.23483598,147.5,147.48,0.2]
[1751764574732,20.95639167,147.49,147.48,0.2]
[1751764575734,7.59814316,147.49,147.48,0.2]
[1751764575927,11.45517497,147.49,147.48,0.2]
[1751764593891,7.59814316,147.49,147.48,6.98058041]
[1751764594055,7.59814316,147.49,147.48,10.83761222]
[1751764594256,0.06,147.51,147.48,10.83761222]
[1751764595092,26.0,147.5,147.48,10.83761222]
[1751764597274,0.06,147.51,147.49,3.85703181]
[1751764597475,0.06,147.51,147.5,3.85703181]
[1751764597790,7.65186398,147.51,147.5,3.85703181]
[1751764598977,7.65186398,147.51,147.49,12.17894742]
[1751764599162,0.06,147.51,147.49,12.17894742]
[1751764605790,26.06,147.51,147.49,12.17894742]
[1751764606996,26.06,147.51,147.49,8.32191561]
[1751764607790,7.59749283,147.5,147.49,8.32191561]
[1751764608175,7.59749283,147.5,147.49,6.77971561]
[1751764611308,7.59749283,147.5,147.48,1.4]
[1751764611486,7.59749283,147.49,147.48,1.4]
[1751764614294,7.59749283,147.49,147.48,0.2]
[1751764640215,7.65749283,147.49,147.48,0.2]
[1751764641140,27.79586202,147.49,147.48,0.2]
[1751764642839,21.01574134,147.49,147.48,0.2]
[1751764663852,27.79586202,147.49,147.48,0.2]
[1751764665351,21.01574134,147.49,147.48,0.2]
[1751764672861,27.79586202,147.49,147.48,0.2]
[1751764676949,18.29464532,147.49,147.47,0.03]
[1751764677145,20.97894893,147.48,147.47,0.03]
[1751764679265,27.75952934,147.48,147.47,0.03]
[1751764679948,44.23510505,147.48,147.47,0.03]
[1751764680259,32.78195998,147.45,147.44,0.2]
[1751764680439,44.23648462,147.45,147.44,0.2]
[1751764684570,53.73992515,147.45,147.44,0.2]
[1751764689654,44.23648462,147.45,147.44,0.2]
[1751764698264,33.59749283,147.45,147.44,0.2]
[1751764698850,33.58610636,147.45,147.44,0.2]
[1751764710762,44.22509815,147.45,147.44,0.2]
[1751764713781,53.7077311,147.45,147.44,0.2]
[1751764716896,49.85069929,147.45,147.44,0.2]
[1751764717105,53.7077311,147.45,147.44,0.2]
[1751764720194,44.22509815,147.45,147.43,0.2]
[1751764720392,11.44313817,147.44,147.43,0.2]
[1751764721904,27.7270951,147.44,147.43,0.2]
[1751764734897,36.87520699,147.44,147.43,0.2]
[1751764735102,26.0,147.42,147.41,0.2]
[1751764735302,46.95609925,147.42,147.41,0.2]
[1751764736523,53.73943936,147.42,147.41,0.2]
[1751764750432,53.74671335,147.42,147.41,0.2]
[1751764750813,46.96337324,147.42,147.41,0.2]
[1751764751012,43.10634143,147.42,147.41,0.2]
[1751764753832,33.60281841,147.42,147.41,0.2]
[1751764756234,33.60991814,147.42,147.41,0.2]
[1751764768257,33.61306914,147.42,147.41,0.2]
[1751764770141,43.12940557,147.42,147.41,0.2]
[1751764770768,46.98643738,147.42,147.41,0.2]
[1751764778251,43.12940557,147.42,147.41,0.2]
[1751764779249,43.14442859,147.42,147.41,0.2]
[1751764781246,33.61974604,147.42,147.41,0.2]
[1751764785065,33.61894959,147.42,147.41,0.2]
[1751764786962,33.61894959,147.42,147.41,6.98380028]
[1751764787136,7.61894959,147.42,147.41,6.98380028]
[1751764788659,7.61894959,147.42,147.41,10.84083209]
[1751764788859,7.61894959,147.42,147.41,10.98299366]
[1751764789040,7.61894959,147.42,147.41,10.84083209]
[1751764790565,7.61894959,147.42,147.41,6.98380028]
[1751764794269,7.61894959,147.42,147.41,10.84083209]
[1751764796362,36.90897037,147.42,147.41,0.2]
[1751764796567,36.90897037,147.42,147.37,0.2]
[1751764796568,26.0,147.38,147.37,0.2]
[1751764796776,11.46384252,147.38,147.37,0.2]
[1751764797250,20.9875295,147.38,147.37,0.2]
[1751764797867,29.95136318,147.38,147.37,0.2]
[1751764799166,26.0,147.36,147.34,0.2]
[1751764799469,13.64249504,147.35,147.34,0.2]
[1751764799959,7.60681071,147.35,147.34,0.2]
[1751764800160,13.64249504,147.35,147.34,0.2]
[1751764801766,7.60681071,147.35,147.34,0.2]
[1751764802277,7.60681071,147.35,147.34,13.02270754]
[1751764802473,7.58997769,147.35,147.34,13.02270754]
[1751764804178,32.03568433,147.38,147.34,13.02270754]
[1751764804364,7.58775445,147.37,147.34,13.02270754]
[1751764804672,7.58775445,147.36,147.34,13.02270754]
[1751764804874,32.03568433,147.38,147.34,13.02270754]
[1751764805077,7.58656636,147.37,147.34,13.02270754]
[1751764805381,7.58656636,147.36,147.34,13.02270754]
[1751764805562,32.03568433,147.38,147.34,13.02270754]
[1751764805786,7.5850738,147.37,147.34,13.02270754]
[1751764805972,7.5850738,147.36,147.34,13.02270754]
[1751764806171,32.03568433,147.38,147.34,13.02270754]
[1751764806366,7.58278889,147.37,147.34,13.02270754]
[1751764806677,7.58278889,147.36,147.34,6.98702321]
[1751764806877,6.03568433,147.37,147.34,6.98702321]
[1751764807173,7.581888,147.36,147.34,6.98702321]
[1751764807374,32.03568433,147.38,147.34,6.98702321]
[1751764807580,7.58063417,147.37,147.34,6.98702321]
[1751764807783,7.58063417,147.36,147.34,6.98702321]
[1751764807970,32.03568433,147.38,147.34,6.98702321]
[1751764808152,7.5807932,147.37,147.34,6.98702321]
[1751764808352,7.58014956,147.36,147.34,6.98702321]
[1751764808572,32.03568433,147.38,147.34,6.98702321]
[1751764808764,7.5794964,147.37,147.34,6.98702321]
[1751764808968,7.5794964,147.36,147.34,6.98702321]
[1751764809163,32.03568433,147.38,147.34,13.02270754]
[1751764809367,7.57900422,147.37,147.34,13.02270754]
[1751764809555,7.57900422,147.36,147.34,13.02270754]
[1751764809768,32.03568433,147.38,147.34,13.02270754]
[1751764809962,7.57844554,147.37,147.34,13.02270754]
[1751764810273,32.03568433,147.38,147.34,13.02270754]
[1751764810274,7.57844554,147.36,147.34,13.02270754]
[1751764810454,32.03568433,147.38,147.34,13.02270754]
[1751764810657,7.57748144,147.37,147.34,13.02270754]
[1751764810878,7.57748144,147.36,147.34,13.02270754]
[1751764811069,32.03568433,147.38,147.34,13.02270754]
[1751764811271,7.57699625,147.37,147.34,13.02270754]
[1751764811467,7.57699625,147.36,147.34,13.02270754]
[1751764811758,32.03568433,147.38,147.34,0.2]
[1751764812074,7.57661341,147.37,147.34,0.2]
[1751764812270,7.57661341,147.36,147.34,0.2]
[1751764812472,7.57661341,147.37,147.34,0.2]
[1751764812784,7.57661341,147.36,147.34,0.2]
[1751764815186,0.06,147.37,147.34,0.2]
[1751764819458,7.57149675,147.36,147.34,0.2]
[1751764823567,7.63149675,147.37,147.34,0.2]
[1751764829388,0.06,147.37,147.34,0.2]
[1751764830602,0.06,147.37,147.34,6.98696928]
[1751764832074,0.06,147.37,147.34,12.40312314]
[1751764834202,7.57734199,147.36,147.34,12.40312314]
[1751764834406,0.06,147.37,147.34,12.40312314]
[1751764834588,7.57783973,147.36,147.34,12.40312314]
[1751764834787,0.06,147.37,147.34,12.40312314]
[1751764834988,7.57783973,147.36,147.34,12.40312314]
[1751764835189,0.06,147.37,147.34,12.40312314]
[1751764835382,7.57989266,147.36,147.34,12.40312314]
[1751764835579,0.06,147.37,147.34,8.54056928]
[1751764835824,7.58038144,147.36,147.34,8.54056928]
[1751764835981,0.06,147.37,147.34,8.54056928]
[1751764836185,7.58038144,147.36,147.34,8.54056928]
[1751764836379,0.06,147.37,147.34,8.54056928]
[1751764836579,7.58326283,147.36,147.34,8.54056928]
[1751764836790,0.06,147.37,147.34,8.54056928]
[1751764837002,7.58326531,147.36,147.34,8.54056928]
[1751764837201,0.06,147.37,147.34,8.54056928]
[1751764837389,7.58612699,147.36,147.34,8.54056928]
[1751764837583,0.06,147.37,147.34,8.54056928]
[1751764837782,7.58657222,147.36,147.34,8.54056928]
[1751764837984,0.06,147.37,147.34,8.54056928]
[1751764838192,7.58656604,147.36,147.34,8.54056928]
[1751764838403,7.58656604,147.35,147.34,8.54056928]
[1751764841883,7.58656604,147.35,147.34,1.7536]
[1751764846011,7.58656604,147.35,147.34,0.2]
[1751764846607,17.05127711,147.35,147.34,0.2]
[1751764849193,7.58656604,147.35,147.34,0.2]
[1751764871343,11.4491199,147.35,147.34,0.2]
[1751764871841,17.05127711,147.35,147.34,0.2]
[1751764872027,20.91383097,147.35,147.34,0.2]
[1751764878748,17.05127711,147.35,147.34,0.2]
[1751764883155,7.58656604,147.35,147.34,0.2]
[1751764888373,17.05127711,147.35,147.34,0.2]
[1751764891735,46.91383097,147.35,147.34,0.2]
[1751764893756,37.4491199,147.35,147.34,0.2]
[1751764893943,37.4491199,147.35,147.32,0.2]
[1751764894139,20.97381013,147.34,147.32,0.2]
[1751764894338,7.58656604,147.33,147.32,0.2]
[1751764896240,20.97381013,147.33,147.32,0.2]
[1751764896543,17.11125627,147.33,147.32,0.2]
[1751764897748,7.58656604,147.33,147.32,0.2]
[1751764899237,7.58656604,147.33,147.32,6.98794461]
[1751764903760,7.58656604,147.33,147.32,10.85049847]
[1751764906062,7.58656604,147.33,147.32,0.2]
[1751764910671,11.4491199,147.33,147.32,0.2]
[1751764910902,27.761294,147.33,147.32,0.2]
[1751764913572,23.89874014,147.33,147.32,0.2]
[1751764913879,7.58656604,147.33,147.32,0.2]
[1751764917195,17.11125627,147.33,147.32,0.2]
[1751764918369,7.58656604,147.33,147.32,0.2]
[1751764923697,11.4491199,147.33,147.32,0.2]
[1751764925395,18.23660377,147.33,147.32,0.2]
[1751764925920,14.37404991,147.33,147.32,0.2]
[1751764926102,18.23660377,147.33,147.32,0.2]
[1751764932300,27.761294,147.33,147.32,0.2]
[1751764933987,46.41094286,147.33,147.32,0.2]
[1751764934193,62.88625263,147.33,147.31,0.03]
[1751764934413,20.95896191,147.32,147.31,0.03]
[1751764935013,20.95896191,147.32,147.27,17.38252133]
[1751764935212,11.4491199,147.31,147.27,17.38252133]
[1751764935417,7.58656604,147.3,147.27,17.38252133]
[1751764935596,7.58656604,147.29,147.27,17.38252133]
[1751764935791,7.58656604,147.28,147.27,17.38252133]
[1751764937282,7.58656604,147.28,147.27,13.51996747]
[1751764937483,7.58656604,147.28,147.27,17.38252133]
[1751764940609,7.58656604,147.28,147.27,13.51996747]
[1751764941409,7.58656604,147.28,147.27,13.54996747]
[1751764941708,7.64656604,147.28,147.27,13.54996747]
[1751764946194,7.64656604,147.28,147.27,6.76]
[1751764946395,7.64656604,147.28,147.27,17.41280306]
[1751764947484,7.64656604,147.28,147.27,13.5502492]
[1751764948714,7.64656604,147.28,147.27,6.76]
[1751764949017,11.5091199,147.28,147.27,0.03]
[1751764953216,36.94855691,147.28,147.27,0.03]
[1751764954287,62.94855691,147.28,147.27,0.03]
[1751764955613,72.45839892,147.28,147.27,0.03]
[1751764956416,46.45839892,147.28,147.27,0.03]
[1751764958716,80.73839892,147.28,147.27,0.03]
[1751764960208,96.18861436,147.28,147.27,0.03]
[1751764961217,96.33077593,147.28,147.27,0.03]
[1751764961414,86.82093392,147.28,147.27,0.03]
[1751764961624,96.33077593,147.28,147.27,0.03]
[1751764962118,96.33077593,147.28,147.26,0.2]